[Event "*** SCC Grand Prix: Titled Tuesday Blitz"]
[Site "Chess.com"]
[Date "2020.06.23"]
[Round "4"]
[White "silverback96"]
[Black "louis198"]
[Result "1-0"]
[WhiteElo "2290"]
[BlackElo "2490"]
[TimeControl "180+1"]
[EndTime "10:40:08 PDT"]
[Termination "silverback96 won by resignation"]

1. d4 {[%clk 0:03:00.9]} 1... e6 {[%clk 0:02:57.5]} 2. c4 {[%clk 0:03:00.4]}
2... d5 {[%clk 0:02:57.6]} 3. g3 {[%clk 0:02:59.4]} 3... g6 {[%clk 0:02:57.5]}
4. Nf3 {[%clk 0:02:58.2]} 4... Bg7 {[%clk 0:02:57.5]} 5. Bg2 {[%clk 0:02:58.7]}
5... Ne7 {[%clk 0:02:57.7]} 6. O-O {[%clk 0:02:59.1]} 6... O-O {[%clk
0:02:58.3]} 7. Nc3 {[%clk 0:02:58.6]} 7... Nbc6 {[%clk 0:02:58.3]} 8. e3 {[%clk
0:02:58.4]} 8... a5 {[%clk 0:02:51.3]} 9. b3 {[%clk 0:02:42.4]} 9... b6 {[%clk
0:02:48.5]} 10. cxd5 {[%clk 0:02:23]} 10... exd5 {[%clk 0:02:47.4]} 11. Bb2
{[%clk 0:02:02.2]} 11... Ba6 {[%clk 0:02:46.3]} 12. Re1 {[%clk 0:02:02.1]} 12...
Nb4 {[%clk 0:02:39.7]} 13. Bf1 {[%clk 0:02:01.2]} 13... Bxf1 {[%clk 0:02:39.4]}
14. Kxf1 {[%clk 0:01:43.3]} 14... Qc8 {[%clk 0:02:38.6]} 15. Kg2 {[%clk
0:01:42.9]} 15... Qf5 {[%clk 0:02:27.5]} 16. Qd2 {[%clk 0:01:32.3]} 16... Bf6
{[%clk 0:02:03.7]} 17. a3 {[%clk 0:01:30.2]} 17... Nc2 {[%clk 0:01:54.8]} 18.
Rec1 {[%clk 0:01:17.3]} 18... Nxa1 {[%clk 0:01:53.8]} 19. Bxa1 {[%clk
0:01:18.2]} 19... Rac8 {[%clk 0:01:50.1]} 20. Nb5 {[%clk 0:01:16.4]} 20... Qd7
{[%clk 0:01:48.8]} 21. a4 {[%clk 0:01:10]} 21... c6 {[%clk 0:01:48.2]} 22. Nc3
{[%clk 0:01:07.3]} 22... Nf5 {[%clk 0:01:48.7]} 23. Bb2 {[%clk 0:00:53.3]} 23...
Rfe8 {[%clk 0:01:46.8]} 24. Ne2 {[%clk 0:00:46.1]} 24... Nd6 {[%clk 0:01:42.3]}
25. Nf4 {[%clk 0:00:41.4]} 25... h5 {[%clk 0:01:18.3]} 26. h4 {[%clk 0:00:36.3]}
26... Re4 {[%clk 0:01:01.6]} 27. Qd1 {[%clk 0:00:33.6]} 27... Nf5 {[%clk
0:00:57.8]} 28. Rc3 {[%clk 0:00:30.2]} 28... Rce8 {[%clk 0:00:56.3]} 29. Bc1
{[%clk 0:00:29.8]} 29... Bg7 {[%clk 0:00:31.3]} 30. Nd3 {[%clk 0:00:29.5]} 30...
f6 {[%clk 0:00:28.6]} 31. Nf4 {[%clk 0:00:28.8]} 31... Kh7 {[%clk 0:00:27.8]}
32. Ne1 {[%clk 0:00:22.5]} 32... Bh6 {[%clk 0:00:27.8]} 33. Ned3 {[%clk
0:00:21.8]} 33... R4e7 {[%clk 0:00:22.1]} 34. Qc2 {[%clk 0:00:21]} 34... Kg7
{[%clk 0:00:20.4]} 35. Rxc6 {[%clk 0:00:20.4]} 35... Bxf4 {[%clk 0:00:16.3]} 36.
Nxf4 {[%clk 0:00:21.3]} 36... Qb7 {[%clk 0:00:15.5]} 37. Rc3 {[%clk 0:00:19]}
37... Rd8 {[%clk 0:00:14.7]} 38. Nxh5+ {[%clk 0:00:18.8]} 38... Kf7 {[%clk
0:00:14]} 39. Nf4 {[%clk 0:00:18.3]} 39... Nd6 {[%clk 0:00:13.5]} 40. h5 {[%clk
0:00:18]} 40... f5 {[%clk 0:00:12.6]} 41. hxg6+ {[%clk 0:00:17.9]} 41... Kf6
{[%clk 0:00:12.8]} 42. Rc6 {[%clk 0:00:16.9]} 42... Kg7 {[%clk 0:00:07.6]} 43.
Nxd5 {[%clk 0:00:17.8]} 43... Re6 {[%clk 0:00:07.1]} 44. Rc7+ {[%clk 0:00:17.6]}
44... Kg8 {[%clk 0:00:03.7]} 45. Rxb7 {[%clk 0:00:17.5]} 45... Nxb7 {[%clk
0:00:04.6]} 46. Qc7 {[%clk 0:00:17.8]} 46... Rxd5 {[%clk 0:00:03.4]} 47. Qf7+
{[%clk 0:00:17.1]} 1-0

[Event "*** SCC Grand Prix: Titled Tuesday Blitz"]
[Site "Chess.com"]
[Date "2020.06.23"]
[Round "4"]
[White "HrvojeZagreb"]
[Black "PowerThinking2650"]
[Result "1-0"]
[WhiteElo "2116"]
[BlackElo "2316"]
[TimeControl "180+1"]
[EndTime "10:40:11 PDT"]
[Termination "HrvojeZagreb won by checkmate"]

1. d4 {[%clk 0:03:00.9]} 1... Nf6 {[%clk 0:02:59.4]} 2. Bf4 {[%clk 0:03:00.5]}
2... g6 {[%clk 0:02:59.3]} 3. Nc3 {[%clk 0:03:00.2]} 3... d5 {[%clk 0:02:58.7]}
4. e3 {[%clk 0:03:00.3]} 4... Bg7 {[%clk 0:02:58.5]} 5. h4 {[%clk 0:03:00.2]}
5... h5 {[%clk 0:02:57.7]} 6. Nf3 {[%clk 0:02:59.4]} 6... O-O {[%clk 0:02:55.3]}
7. Ne5 {[%clk 0:02:58.7]} 7... c5 {[%clk 0:02:54.3]} 8. Be2 {[%clk 0:02:57]}
8... cxd4 {[%clk 0:02:41.5]} 9. exd4 {[%clk 0:02:57.9]} 9... Be6 {[%clk
0:02:18]} 10. g4 {[%clk 0:02:56.9]} 10... hxg4 {[%clk 0:02:16.1]} 11. Nxg4
{[%clk 0:02:55.5]} 11... Nbd7 {[%clk 0:02:12.4]} 12. Nxf6+ {[%clk 0:02:30.6]}
12... Nxf6 {[%clk 0:01:03.2]} 13. h5 {[%clk 0:02:30.5]} 13... Re8 {[%clk
0:00:51.7]} 14. hxg6 {[%clk 0:02:23.8]} 14... fxg6 {[%clk 0:00:50.8]} 15. Bh6
{[%clk 0:02:22.3]} 15... Bh8 {[%clk 0:00:46.6]} 16. Bb5 {[%clk 0:01:35.8]} 16...
Bf5 {[%clk 0:00:31]} 17. Bxe8 {[%clk 0:01:32.6]} 17... Qxe8 {[%clk 0:00:30.7]}
18. Qf3 {[%clk 0:01:20.1]} 18... Qc6 {[%clk 0:00:25.1]} 19. Rg1 {[%clk
0:01:12.7]} 19... Kf7 {[%clk 0:00:23.6]} 20. O-O-O {[%clk 0:01:00.5]} 20... b5
{[%clk 0:00:23.6]} 21. Rd2 {[%clk 0:00:44.7]} 21... b4 {[%clk 0:00:23.5]} 22.
Nd1 {[%clk 0:00:30.9]} 22... Ne4 {[%clk 0:00:13.9]} 23. Re2 {[%clk 0:00:30.5]}
23... Bxd4 {[%clk 0:00:10.8]} 24. Ne3 {[%clk 0:00:21.8]} 24... e6 {[%clk
0:00:08.9]} 25. Nxf5 {[%clk 0:00:18.8]} 25... exf5 {[%clk 0:00:09]} 26. Rxe4
{[%clk 0:00:16.9]} 26... dxe4 {[%clk 0:00:08.5]} 27. Qb3+ {[%clk 0:00:17.5]}
27... Ke7 {[%clk 0:00:05.2]} 28. Bg5+ {[%clk 0:00:17.2]} 28... Bf6 {[%clk
0:00:04.5]} 29. Bxf6+ {[%clk 0:00:17]} 29... Kxf6 {[%clk 0:00:05]} 30. Qxb4
{[%clk 0:00:16.1]} 30... Rc8 {[%clk 0:00:04.3]} 31. Qd4+ {[%clk 0:00:15.9]}
31... Kf7 {[%clk 0:00:04]} 32. c3 {[%clk 0:00:15.4]} 32... Qf6 {[%clk
0:00:02.2]} 33. Qe3 {[%clk 0:00:15.1]} 33... Kg7 {[%clk 0:00:02.3]} 34. Rh1
{[%clk 0:00:15]} 34... Rh8 {[%clk 0:00:02.5]} 35. Rxh8 {[%clk 0:00:14.2]} 35...
Kxh8 {[%clk 0:00:03.4]} 36. Qxa7 {[%clk 0:00:13.8]} 36... Qg5+ {[%clk
0:00:02.8]} 37. Kc2 {[%clk 0:00:12.1]} 37... Qf4 {[%clk 0:00:03.7]} 38. Qd4+
{[%clk 0:00:12]} 38... Kh7 {[%clk 0:00:03.3]} 39. a4 {[%clk 0:00:12.9]} 39... g5
{[%clk 0:00:03]} 40. a5 {[%clk 0:00:13.2]} 40... Qf3 {[%clk 0:00:03.2]} 41. Qd2
{[%clk 0:00:06.9]} 41... f4 {[%clk 0:00:02.9]} 42. a6 {[%clk 0:00:06.6]} 42...
e3 {[%clk 0:00:03.2]} 43. Qd3+ {[%clk 0:00:06.4]} 43... Kh6 {[%clk 0:00:02.9]}
44. fxe3 {[%clk 0:00:06.8]} 44... fxe3 {[%clk 0:00:03]} 45. a7 {[%clk
0:00:06.5]} 45... Qf2+ {[%clk 0:00:03]} 46. Kb3 {[%clk 0:00:06.4]} 46... e2
{[%clk 0:00:03.1]} 47. a8=Q {[%clk 0:00:06.4]} 47... Qb6+ {[%clk 0:00:02.7]} 48.
Kc2 {[%clk 0:00:05.1]} 48... e1=Q {[%clk 0:00:02.6]} 49. Qh8# {[%clk 0:00:04.2]}
1-0

[Event "*** SCC Grand Prix: Titled Tuesday Blitz"]
[Site "Chess.com"]
[Date "2020.06.23"]
[Round "4"]
[White "StockholmMissile"]
[Black "Kaua18"]
[Result "1-0"]
[WhiteElo "2421"]
[BlackElo "2229"]
[TimeControl "180+1"]
[EndTime "10:40:14 PDT"]
[Termination "StockholmMissile won by resignation"]

1. d4 {[%clk 0:03:00.9]} 1... Nf6 {[%clk 0:03:00.1]} 2. c4 {[%clk 0:03:00.3]}
2... e6 {[%clk 0:03:00.5]} 3. Nf3 {[%clk 0:03:00.4]} 3... b6 {[%clk 0:03:00.3]}
4. a3 {[%clk 0:03:00.2]} 4... Bb7 {[%clk 0:03:00.4]} 5. Nc3 {[%clk 0:03:00.2]}
5... d5 {[%clk 0:02:56.2]} 6. Bg5 {[%clk 0:02:59.8]} 6... Be7 {[%clk 0:02:53.7]}
7. Qa4+ {[%clk 0:02:59.6]} 7... Nbd7 {[%clk 0:02:52.6]} 8. Bxf6 {[%clk
0:02:58.7]} 8... Bxf6 {[%clk 0:02:51.5]} 9. cxd5 {[%clk 0:02:59.2]} 9... exd5
{[%clk 0:02:50.1]} 10. g3 {[%clk 0:02:59.6]} 10... O-O {[%clk 0:02:50]} 11. Bh3
{[%clk 0:02:59.9]} 11... c6 {[%clk 0:02:45.3]} 12. Nxd5 {[%clk 0:02:59.1]} 12...
b5 {[%clk 0:02:40.4]} 13. Nxf6+ {[%clk 0:02:58.7]} 13... Nxf6 {[%clk 0:02:40.4]}
14. Qc2 {[%clk 0:02:51.8]} 14... Re8 {[%clk 0:02:12.1]} 15. O-O {[%clk
0:02:48.2]} 15... h5 {[%clk 0:01:59.5]} 16. Bg2 {[%clk 0:02:45.4]} 16... Qe7
{[%clk 0:01:53.6]} 17. e3 {[%clk 0:02:43.7]} 17... Rac8 {[%clk 0:01:46.4]} 18.
Rac1 {[%clk 0:02:39.5]} 18... Nd5 {[%clk 0:01:22.7]} 19. Ne1 {[%clk 0:02:28.8]}
19... h4 {[%clk 0:01:05.9]} 20. Nd3 {[%clk 0:02:27.4]} 20... hxg3 {[%clk
0:01:05]} 21. hxg3 {[%clk 0:02:27.5]} 21... c5 {[%clk 0:00:52.2]} 22. Nxc5
{[%clk 0:02:18.2]} 22... Nxe3 {[%clk 0:00:48.3]} 23. fxe3 {[%clk 0:02:16.5]}
23... Qxe3+ {[%clk 0:00:49.2]} 24. Qf2 {[%clk 0:02:16.7]} 24... Bxg2 {[%clk
0:00:41.6]} 25. Qxe3 {[%clk 0:02:13.1]} 25... Rxe3 {[%clk 0:00:42.5]} 26. Kxg2
{[%clk 0:02:13.4]} 26... Rd8 {[%clk 0:00:39]} 27. Rcd1 {[%clk 0:02:10.4]} 27...
g6 {[%clk 0:00:31]} 28. Rd2 {[%clk 0:02:06.3]} 28... Kg7 {[%clk 0:00:13.3]} 29.
Rf3 {[%clk 0:02:03.6]} 29... Re7 {[%clk 0:00:11.8]} 30. Rb3 {[%clk 0:02:02.6]}
30... Rb8 {[%clk 0:00:10.3]} 31. a4 {[%clk 0:02:01]} 31... b4 {[%clk 0:00:09.8]}
32. a5 {[%clk 0:02:00.4]} 32... Re1 {[%clk 0:00:07.5]} 33. a6 {[%clk 0:01:59.6]}
33... g5 {[%clk 0:00:07.1]} 34. Rf3 {[%clk 0:01:52.8]} 34... Rh8 {[%clk
0:00:05.6]} 35. Rf1 {[%clk 0:01:40.1]} 35... Ree8 {[%clk 0:00:02.7]} 36. Rh1
{[%clk 0:01:35.9]} 36... Rhf8 {[%clk 0:00:02.6]} 37. Nd7 {[%clk 0:01:30.5]}
37... Rg8 {[%clk 0:00:02.4]} 38. Ne5 {[%clk 0:01:26.7]} 38... Re6 {[%clk
0:00:03.3]} 39. Ra1 {[%clk 0:01:24.4]} 39... f6 {[%clk 0:00:03.4]} 40. Nd3
{[%clk 0:01:24]} 40... Re4 {[%clk 0:00:03.2]} 41. Nxb4 {[%clk 0:01:23.5]} 41...
Rge8 {[%clk 0:00:04.1]} 42. Nc6 {[%clk 0:01:21.5]} 42... Re3 {[%clk 0:00:04.8]}
43. Nxa7 {[%clk 0:01:20]} 43... Rb3 {[%clk 0:00:05]} 44. Nc6 {[%clk 0:01:19.2]}
44... Ree3 {[%clk 0:00:05]} 45. Kf2 {[%clk 0:01:07.4]} 45... Rxg3 {[%clk
0:00:05.9]} 46. Rf1 {[%clk 0:00:58.8]} 46... Rh3 {[%clk 0:00:02.8]} 47. Ke1
{[%clk 0:00:57]} 47... Rh8 {[%clk 0:00:02.6]} 48. a7 {[%clk 0:00:56.2]} 48...
Rb6 {[%clk 0:00:02.2]} 49. Rc2 {[%clk 0:00:55.7]} 49... Ra6 {[%clk 0:00:02.6]}
50. Kd2 {[%clk 0:00:46.5]} 50... Re8 {[%clk 0:00:02.2]} 51. Re1 {[%clk
0:00:44.7]} 51... Rc8 {[%clk 0:00:02.5]} 52. d5 {[%clk 0:00:44.1]} 52... Rh8
{[%clk 0:00:02.4]} 53. Re7+ {[%clk 0:00:42.7]} 53... Kg6 {[%clk 0:00:02.5]} 54.
Re2 {[%clk 0:00:40.9]} 54... g4 {[%clk 0:00:03]} 55. d6 {[%clk 0:00:40.3]} 55...
Kg5 {[%clk 0:00:03.4]} 56. d7 {[%clk 0:00:40.2]} 56... g3 {[%clk 0:00:03]} 57.
d8=Q {[%clk 0:00:39.4]} 57... Rxd8+ {[%clk 0:00:02.3]} 58. Nxd8 {[%clk
0:00:40.3]} 58... Rxa7 {[%clk 0:00:03.2]} 59. Ne6+ {[%clk 0:00:39.8]} 59... Kg4
{[%clk 0:00:03.3]} 60. Rc4+ {[%clk 0:00:39.5]} 60... Kf5 {[%clk 0:00:03.4]} 61.
Nd4+ {[%clk 0:00:38.6]} 61... Kg4 {[%clk 0:00:03.7]} 62. Nc6+ {[%clk 0:00:38.1]}
1-0

[Event "*** SCC Grand Prix: Titled Tuesday Blitz"]
[Site "Chess.com"]
[Date "2020.06.23"]
[Round "4"]
[White "BogdanDeac"]
[Black "antoszu"]
[Result "1-0"]
[WhiteElo "2821"]
[BlackElo "2549"]
[TimeControl "180+1"]
[EndTime "10:40:16 PDT"]
[Termination "BogdanDeac won by resignation"]

1. e4 {[%clk 0:03:00.9]} 1... e6 {[%clk 0:02:59.6]} 2. d4 {[%clk 0:03:00.1]}
2... d5 {[%clk 0:02:59.9]} 3. Nc3 {[%clk 0:03:00.6]} 3... Nf6 {[%clk 0:02:59.9]}
4. e5 {[%clk 0:03:00.8]} 4... Nfd7 {[%clk 0:03:00]} 5. f4 {[%clk 0:03:01.4]}
5... c5 {[%clk 0:03:00.3]} 6. Nf3 {[%clk 0:03:01.9]} 6... Nc6 {[%clk 0:03:00.4]}
7. Be3 {[%clk 0:03:02]} 7... a6 {[%clk 0:03:00.9]} 8. Qd2 {[%clk 0:03:01]} 8...
b5 {[%clk 0:03:01.1]} 9. dxc5 {[%clk 0:03:01.2]} 9... Bxc5 {[%clk 0:03:02]} 10.
Bd3 {[%clk 0:03:01.6]} 10... O-O {[%clk 0:02:59]} 11. Ne2 {[%clk 0:02:40.5]}
11... Qb6 {[%clk 0:02:54.4]} 12. Ned4 {[%clk 0:02:30.9]} 12... b4 {[%clk
0:02:41.4]} 13. c3 {[%clk 0:02:26.8]} 13... a5 {[%clk 0:02:41]} 14. O-O {[%clk
0:01:37.4]} 14... Ba6 {[%clk 0:02:33.4]} 15. Rae1 {[%clk 0:01:36.5]} 15... bxc3
{[%clk 0:02:13.8]} 16. bxc3 {[%clk 0:01:36]} 16... Nxd4 {[%clk 0:02:14.1]} 17.
Bxd4 {[%clk 0:01:29]} 17... Bxd4+ {[%clk 0:02:08.4]} 18. cxd4 {[%clk 0:01:28.6]}
18... Bxd3 {[%clk 0:02:05.5]} 19. Qxd3 {[%clk 0:01:28.6]} 19... Qa6 {[%clk
0:02:02.5]} 20. Qxa6 {[%clk 0:01:19.5]} 20... Rxa6 {[%clk 0:02:03.4]} 21. Rc1
{[%clk 0:01:19.8]} 21... Rb8 {[%clk 0:01:51.3]} 22. Rc7 {[%clk 0:01:19]} 22...
Nf8 {[%clk 0:01:45.1]} 23. Ng5 {[%clk 0:01:18]} 23... f6 {[%clk 0:01:37.2]} 24.
exf6 {[%clk 0:01:17.4]} 24... gxf6 {[%clk 0:01:38.1]} 25. Nf7 {[%clk 0:01:17.8]}
25... Rab6 {[%clk 0:01:29.9]} 26. f5 {[%clk 0:01:15.8]} 26... R6b7 {[%clk
0:01:20.9]} 27. Nh6+ {[%clk 0:01:07.6]} 27... Kh8 {[%clk 0:01:20.7]} 28. Rfc1
{[%clk 0:01:07.2]} 28... Rxc7 {[%clk 0:00:35.6]} 29. Rxc7 {[%clk 0:01:06.4]}
29... exf5 {[%clk 0:00:36]} 30. Rf7 {[%clk 0:00:51.3]} 30... Ne6 {[%clk
0:00:33]} 31. Nxf5 {[%clk 0:00:49.2]} 31... Ng5 {[%clk 0:00:24.3]} 32. Rd7
{[%clk 0:00:42.4]} 32... Rb1+ {[%clk 0:00:13.9]} 33. Kf2 {[%clk 0:00:42.3]}
33... h5 {[%clk 0:00:14.6]} 34. Kg3 {[%clk 0:00:35.5]} 34... Rb2 {[%clk
0:00:13]} 35. a4 {[%clk 0:00:34.9]} 35... Ne4+ {[%clk 0:00:12.1]} 36. Kh3 {[%clk
0:00:30.7]} 36... Ng5+ {[%clk 0:00:09.8]} 37. Kh4 {[%clk 0:00:27.9]} 37... Rxg2
{[%clk 0:00:09.5]} 38. Kxh5 {[%clk 0:00:28]} 38... Ne4 {[%clk 0:00:03.9]} 39. h4
{[%clk 0:00:20.9]} 39... Ng3+ {[%clk 0:00:02.7]} 40. Nxg3 {[%clk 0:00:18.7]}
40... Rxg3 {[%clk 0:00:03.6]} 41. Rxd5 {[%clk 0:00:19.2]} 41... Kg7 {[%clk
0:00:04.1]} 42. Rd7+ {[%clk 0:00:18]} 42... Kf8 {[%clk 0:00:03.7]} 43. d5 {[%clk
0:00:18.5]} 43... Ke8 {[%clk 0:00:04]} 44. Ra7 {[%clk 0:00:18.1]} 44... f5
{[%clk 0:00:03.8]} 45. d6 {[%clk 0:00:17]} 45... f4 {[%clk 0:00:04.4]} 46. Rxa5
{[%clk 0:00:16.9]} 46... Kd7 {[%clk 0:00:04.7]} 47. Rf5 {[%clk 0:00:16.8]} 47...
f3 {[%clk 0:00:04.3]} 48. Rf6 {[%clk 0:00:17]} 48... Rg1 {[%clk 0:00:02.5]} 49.
Rxf3 {[%clk 0:00:15.6]} 49... Kxd6 {[%clk 0:00:03.4]} 50. Rf5 {[%clk 0:00:15.7]}
50... Ra1 {[%clk 0:00:03.5]} 51. a5 {[%clk 0:00:15.1]} 51... Ke6 {[%clk
0:00:04.4]} 52. Kg6 {[%clk 0:00:13.9]} 52... Rg1+ {[%clk 0:00:03.8]} 53. Rg5
{[%clk 0:00:13.9]} 1-0

[Event "*** SCC Grand Prix: Titled Tuesday Blitz"]
[Site "Chess.com"]
[Date "2020.06.23"]
[Round "4"]
[White "ElusiveCat"]
[Black "blitzking1729"]
[Result "1/2-1/2"]
[WhiteElo "2353"]
[BlackElo "2568"]
[TimeControl "180+1"]
[EndTime "10:40:18 PDT"]
[Termination "Game drawn - insufficient material"]

1. d4 {[%clk 0:02:58.1]} 1... d6 {[%clk 0:02:59.4]} 2. c4 {[%clk 0:02:57.1]}
2... e5 {[%clk 0:02:59.3]} 3. Nf3 {[%clk 0:02:56.6]} 3... e4 {[%clk 0:02:59.1]}
4. Ng5 {[%clk 0:02:55.8]} 4... f5 {[%clk 0:02:59.1]} 5. g3 {[%clk 0:02:55]} 5...
Be7 {[%clk 0:02:58.6]} 6. Nh3 {[%clk 0:02:54.9]} 6... Nf6 {[%clk 0:02:58.2]} 7.
Bg2 {[%clk 0:02:54.6]} 7... c6 {[%clk 0:02:58.2]} 8. d5 {[%clk 0:02:50.8]} 8...
cxd5 {[%clk 0:02:57.5]} 9. cxd5 {[%clk 0:02:51.7]} 9... O-O {[%clk 0:02:57.5]}
10. O-O {[%clk 0:02:50.9]} 10... Na6 {[%clk 0:02:57.3]} 11. Nc3 {[%clk
0:02:47.9]} 11... Nc7 {[%clk 0:02:57.1]} 12. f3 {[%clk 0:02:45.5]} 12... exf3
{[%clk 0:02:44.1]} 13. Bxf3 {[%clk 0:02:46.4]} 13... b5 {[%clk 0:02:44.1]} 14.
a3 {[%clk 0:02:38.2]} 14... Bb7 {[%clk 0:02:37.5]} 15. Nf4 {[%clk 0:02:35.6]}
15... a5 {[%clk 0:02:34.3]} 16. Ne6 {[%clk 0:02:12.9]} 16... Nxe6 {[%clk
0:02:33]} 17. dxe6 {[%clk 0:02:13.8]} 17... Bxf3 {[%clk 0:02:31.4]} 18. exf3
{[%clk 0:02:14.7]} 18... b4 {[%clk 0:02:29.9]} 19. Nd5 {[%clk 0:02:08.3]} 19...
Nxd5 {[%clk 0:02:21.7]} 20. Qxd5 {[%clk 0:02:09.2]} 20... Qb6+ {[%clk
0:02:21.5]} 21. Kh1 {[%clk 0:02:03.8]} 21... Rac8 {[%clk 0:02:21]} 22. Qd3
{[%clk 0:01:39.5]} 22... Qc5 {[%clk 0:02:07.3]} 23. Bf4 {[%clk 0:01:31.7]} 23...
g5 {[%clk 0:01:41.6]} 24. axb4 {[%clk 0:01:12]} 24... Qxb4 {[%clk 0:01:38]} 25.
Bd2 {[%clk 0:01:07.4]} 25... Qxb2 {[%clk 0:01:34.2]} 26. Rxa5 {[%clk 0:01:00.7]}
26... Qf6 {[%clk 0:01:06.1]} 27. g4 {[%clk 0:00:43.3]} 27... fxg4 {[%clk
0:00:35.7]} 28. Rxg5+ {[%clk 0:00:40.4]} 28... Kh8 {[%clk 0:00:33.7]} 29. Rxg4
{[%clk 0:00:39.1]} 29... Qxe6 {[%clk 0:00:30.1]} 30. Bc3+ {[%clk 0:00:31.9]}
30... Bf6 {[%clk 0:00:26.4]} 31. Bxf6+ {[%clk 0:00:25]} 31... Qxf6 {[%clk
0:00:22.9]} 32. Qd5 {[%clk 0:00:17.4]} 32... Rc5 {[%clk 0:00:20.9]} 33. Qe4
{[%clk 0:00:16.1]} 33... Re5 {[%clk 0:00:19.5]} 34. Qd3 {[%clk 0:00:15.4]} 34...
Rf5 {[%clk 0:00:18.7]} 35. Rg3 {[%clk 0:00:15.1]} 35... d5 {[%clk 0:00:18.2]}
36. Kg2 {[%clk 0:00:11.3]} 36... d4 {[%clk 0:00:16.6]} 37. Qe4 {[%clk
0:00:10.9]} 37... Re5 {[%clk 0:00:15.3]} 38. Qd3 {[%clk 0:00:10.1]} 38... Re3
{[%clk 0:00:14.8]} 39. Qd1 {[%clk 0:00:10.1]} 39... d3 {[%clk 0:00:14.2]} 40.
Rf2 {[%clk 0:00:10.5]} 40... Rfe8 {[%clk 0:00:13.5]} 41. f4 {[%clk 0:00:08.9]}
41... Rxg3+ {[%clk 0:00:11.2]} 42. hxg3 {[%clk 0:00:09.8]} 42... Qc6+ {[%clk
0:00:10.9]} 43. Qf3 {[%clk 0:00:08.9]} 43... Qd6 {[%clk 0:00:10]} 44. Rd2 {[%clk
0:00:08.4]} 44... Rd8 {[%clk 0:00:09.7]} 45. Qe4 {[%clk 0:00:08.6]} 45... Kg7
{[%clk 0:00:08]} 46. Kf3 {[%clk 0:00:08]} 46... h6 {[%clk 0:00:07]} 47. Qe5+
{[%clk 0:00:07.5]} 47... Qxe5 {[%clk 0:00:06.9]} 48. fxe5 {[%clk 0:00:08.4]}
48... Kf7 {[%clk 0:00:07.2]} 49. Ke4 {[%clk 0:00:08.7]} 49... Ke6 {[%clk
0:00:07.4]} 50. Rxd3 {[%clk 0:00:09]} 50... Rxd3 {[%clk 0:00:07.4]} 51. Kxd3
{[%clk 0:00:09.9]} 51... Kxe5 {[%clk 0:00:08.1]} 52. Ke3 {[%clk 0:00:10.2]}
52... Kf5 {[%clk 0:00:08.4]} 53. Kf3 {[%clk 0:00:10]} 53... h5 {[%clk
0:00:08.8]} 54. Kg2 {[%clk 0:00:09.8]} 54... Kg4 {[%clk 0:00:09.4]} 55. Kh2
{[%clk 0:00:10.1]} 55... h4 {[%clk 0:00:09.9]} 56. gxh4 {[%clk 0:00:10.9]} 56...
Kxh4 {[%clk 0:00:10.8]} 1/2-1/2

[Event "*** SCC Grand Prix: Titled Tuesday Blitz"]
[Site "Chess.com"]
[Date "2020.06.23"]
[Round "4"]
[White "Diego_FloresQ"]
[Black "LuisFSiles"]
[Result "1-0"]
[WhiteElo "2466"]
[BlackElo "2311"]
[TimeControl "180+1"]
[EndTime "10:40:18 PDT"]
[Termination "Diego_FloresQ won by resignation"]

1. e4 {[%clk 0:02:56.4]} 1... c5 {[%clk 0:02:58.7]} 2. Nf3 {[%clk 0:02:54.7]}
2... d6 {[%clk 0:02:58.9]} 3. d4 {[%clk 0:02:48.2]} 3... cxd4 {[%clk 0:02:57.9]}
4. Nxd4 {[%clk 0:02:49.1]} 4... Nf6 {[%clk 0:02:57.9]} 5. Nc3 {[%clk 0:02:43.4]}
5... g6 {[%clk 0:02:57.7]} 6. Be3 {[%clk 0:02:41]} 6... Bg7 {[%clk 0:02:57.7]}
7. f3 {[%clk 0:02:37.6]} 7... O-O {[%clk 0:02:56.6]} 8. Qd2 {[%clk 0:02:36.5]}
8... Nc6 {[%clk 0:02:55.6]} 9. O-O-O {[%clk 0:02:35.7]} 9... Be6 {[%clk
0:02:54.9]} 10. Kb1 {[%clk 0:02:29.7]} 10... Rc8 {[%clk 0:02:51.3]} 11. h4
{[%clk 0:02:24.1]} 11... Ne5 {[%clk 0:02:39.5]} 12. h5 {[%clk 0:02:19.4]} 12...
Nxh5 {[%clk 0:02:34.9]} 13. Bh6 {[%clk 0:02:05.3]} 13... Bxh6 {[%clk 0:02:08.2]}
14. Qxh6 {[%clk 0:02:04.2]} 14... Rxc3 {[%clk 0:02:04.2]} 15. bxc3 {[%clk
0:01:42.9]} 15... Qa5 {[%clk 0:01:27.2]} 16. Nxe6 {[%clk 0:01:38.8]} 16... fxe6
{[%clk 0:01:25.8]} 17. Rxh5 {[%clk 0:01:30.5]} 17... gxh5 {[%clk 0:01:23.2]} 18.
Qxe6+ {[%clk 0:01:31.1]} 18... Nf7 {[%clk 0:01:11.2]} 19. Bc4 {[%clk 0:00:51.9]}
19... Qxc3 {[%clk 0:00:56.3]} 20. Bb3 {[%clk 0:00:51.4]} 20... Qe5 {[%clk
0:00:19.6]} 21. Qxe5 {[%clk 0:00:38.2]} 21... dxe5 {[%clk 0:00:20.5]} 22. Rd7
{[%clk 0:00:38.3]} 22... Kg7 {[%clk 0:00:20.9]} 23. Rxe7 {[%clk 0:00:37.9]}
23... Kf6 {[%clk 0:00:21.2]} 24. Rxb7 {[%clk 0:00:35.4]} 24... Nd6 {[%clk
0:00:16.7]} 25. Rxh7 {[%clk 0:00:35]} 25... Kg6 {[%clk 0:00:15]} 26. Rxa7 {[%clk
0:00:34.4]} 26... h4 {[%clk 0:00:13.6]} 27. c4 {[%clk 0:00:27.5]} 27... Kg5
{[%clk 0:00:12.7]} 28. c5 {[%clk 0:00:27]} 28... Nb5 {[%clk 0:00:11.9]} 29. Rg7+
{[%clk 0:00:27.4]} 29... Kf4 {[%clk 0:00:11.1]} 30. c6 {[%clk 0:00:23.6]} 30...
Rc8 {[%clk 0:00:10.8]} 31. Bd5 {[%clk 0:00:20.5]} 31... Ke3 {[%clk 0:00:09.6]}
32. a4 {[%clk 0:00:19.4]} 32... Nc3+ {[%clk 0:00:09.2]} 33. Kc2 {[%clk
0:00:18.2]} 33... Kd4 {[%clk 0:00:09.7]} 34. a5 {[%clk 0:00:17.6]} 34... Nxd5
{[%clk 0:00:09.9]} 35. exd5 {[%clk 0:00:18.5]} 35... Kxd5 {[%clk 0:00:10.3]} 36.
c7 {[%clk 0:00:17]} 36... Kc6 {[%clk 0:00:10.4]} 37. Kd3 {[%clk 0:00:15.7]}
37... Kb5 {[%clk 0:00:10.6]} 38. Ke4 {[%clk 0:00:15.2]} 38... Kxa5 {[%clk
0:00:11.1]} 39. Kxe5 {[%clk 0:00:15.8]} 39... Kb6 {[%clk 0:00:12]} 40. Kd6
{[%clk 0:00:16.4]} 40... Kb7 {[%clk 0:00:12.5]} 41. Kd7 {[%clk 0:00:11.6]} 41...
h3 {[%clk 0:00:11.9]} 42. gxh3 {[%clk 0:00:11.3]} 42... Rf8 {[%clk 0:00:12]} 43.
f4 {[%clk 0:00:06.7]} 43... Rc8 {[%clk 0:00:11.2]} 44. Kd6 {[%clk 0:00:04.3]}
44... Rf8 {[%clk 0:00:10.7]} 45. Ke5 {[%clk 0:00:04.9]} 45... Rh8 {[%clk
0:00:10.1]} 46. f5 {[%clk 0:00:04.7]} 46... Rxh3 {[%clk 0:00:10.2]} 47. f6
{[%clk 0:00:05.6]} 47... Rh1 {[%clk 0:00:10.2]} 48. f7 {[%clk 0:00:05.5]} 48...
Re1+ {[%clk 0:00:10.2]} 49. Kd4 {[%clk 0:00:04.9]} 49... Rd1+ {[%clk 0:00:10.3]}
50. Ke5 {[%clk 0:00:05]} 50... Re1+ {[%clk 0:00:10.3]} 51. Kd6 {[%clk
0:00:05.7]} 51... Rf1 {[%clk 0:00:11]} 52. Ke7 {[%clk 0:00:06.1]} 52... Re1+
{[%clk 0:00:11.2]} 53. Kf8 {[%clk 0:00:06.8]} 53... Rc1 {[%clk 0:00:10.3]} 54.
Kg8 {[%clk 0:00:07.1]} 54... Rxc7 {[%clk 0:00:08.8]} 55. f8=Q {[%clk 0:00:08]}
55... Rxg7+ {[%clk 0:00:07.2]} 56. Kxg7 {[%clk 0:00:07.8]} 1-0